[Event "Titled Tuesday Blitz March 07 Late 2023"]
[White "Hirneise, Jens"]
[Black "Kukavica, Tony"]
[WhiteFideId "24614734"]
[BlackFideId "2062542"]
[WhiteElo "2345"]
[BlackElo "1993"]
[Result "1-0"]
[Round "03"]
[TimeControl "180+2"]
[Date "2023.03.07"]
[WhiteClock "0:00:36"]
[BlackClock "0:00:06"]

1. e4 {[%clk 0:03:00]}  c5 {[%clk 0:02:59]} 2. Nc3 {[%clk 0:02:55]}  e6 {[%clk 0:02:57]} 3. f4 {[%clk 0:02:50]}  d6 {[%clk 0:02:52]} 4. Nf3 {[%clk 0:02:48]}  Nf6 {[%clk 0:02:52]} 5. d3 {[%clk 0:02:47]}  Be7 {[%clk 0:02:53]} 6. g3 {[%clk 0:02:48]}  O-O {[%clk 0:02:53]} 7. Bg2 {[%clk 0:02:48]}  Nc6 {[%clk 0:02:54]} 8. O-O {[%clk 0:02:48]}  Re8 {[%clk 0:02:54]} 9. h3 {[%clk 0:02:47]}  Rb8 {[%clk 0:02:54]} 10. g4 {[%clk 0:02:46]}  Nd7 {[%clk 0:02:54]} 11. g5 {[%clk 0:02:41]}  b5 {[%clk 0:02:53]} 12. h4 {[%clk 0:02:41]}  b4 {[%clk 0:02:47]} 13. Ne2 {[%clk 0:02:40]}  a5 {[%clk 0:02:47]} 14. Be3 {[%clk 0:02:36]}  Ba6 {[%clk 0:02:39]} 15. Ng3 {[%clk 0:02:30]}  c4 {[%clk 0:02:34]} 16. Rf2 {[%clk 0:02:25]}  cxd3 {[%clk 0:02:31]} 17. cxd3 {[%clk 0:02:26]}  Nc5 {[%clk 0:02:31]} 18. Bf1 {[%clk 0:02:25]}  d5 {[%clk 0:02:24]} 19. e5 {[%clk 0:01:50]}  d4 {[%clk 0:02:16]} 20. Bc1 {[%clk 0:01:50]}  Bf8 {[%clk 0:02:11]} 21. h5 {[%clk 0:01:49]}  Ne7 {[%clk 0:02:09]} 22. h6 {[%clk 0:01:45]}  g6 {[%clk 0:02:07]} 23. Ne4 {[%clk 0:01:35]}  Nf5 {[%clk 0:01:57]} 24. Nf6+ {[%clk 0:01:33]}  Kh8 {[%clk 0:01:57]} 25. Nxe8 {[%clk 0:01:31]}  Qxe8 {[%clk 0:01:58]} 26. Bd2 {[%clk 0:01:29]}  Nxd3 {[%clk 0:01:54]} 27. Bxd3 {[%clk 0:01:26]}  Bxd3 {[%clk 0:01:53]} 28. Bxb4 {[%clk 0:01:26]}  Be4 {[%clk 0:01:31]} 29. Bxf8 {[%clk 0:01:24]}  Qxf8 {[%clk 0:01:29]} 30. Rc1 {[%clk 0:01:23]}  Qb4 {[%clk 0:01:09]} 31. b3 {[%clk 0:01:18]}  Bd5 {[%clk 0:00:56]} 32. Rfc2 {[%clk 0:01:11]}  Ne7 {[%clk 0:00:47]} 33. Qxd4 {[%clk 0:01:04]}  Qb7 {[%clk 0:00:29]} 34. Rc7 {[%clk 0:01:03]}  Rc8 {[%clk 0:00:23]} 35. Rxb7 {[%clk 0:00:57]}  Rxc1+ {[%clk 0:00:23]} 36. Kf2 {[%clk 0:00:57]}  Rc2+ {[%clk 0:00:23]} 37. Nd2 {[%clk 0:00:54]}  Bxb7 {[%clk 0:00:23]} 38. Qd7 {[%clk 0:00:47]}  Ng8 {[%clk 0:00:16]} 39. Qxf7 {[%clk 0:00:45]}  Rxd2+ {[%clk 0:00:16]} 40. Ke3 {[%clk 0:00:45]}  Rd7 {[%clk 0:00:07]} 41. Qxd7 {[%clk 0:00:44]}  Ne7 {[%clk 0:00:07]} 42. Qxe7 {[%clk 0:00:40]}  a4 {[%clk 0:00:08]} 43. b4 {[%clk 0:00:38]}  a3 {[%clk 0:00:07]} 44. b5 {[%clk 0:00:38]}  Kg8 {[%clk 0:00:06]} 45. Qg7# {[%clk 0:00:36]} 1-0


[Site "https://www.chess.com"]

[Event "Titled Tuesday Blitz March 07 Late 2023"]
[White "Petrovic, Aleksa"]
[Black "Skaric, Djuro"]
[WhiteFideId "967629"]
[BlackFideId "934569"]
[WhiteElo "2326"]
[BlackElo "2282"]
[Result "1-0"]
[Round "03"]
[TimeControl "180+2"]
[Date "2023.03.07"]
[WhiteClock "0:00:15"]
[BlackClock "0:00:48"]

1. d4 {[%clk 0:03:00]}  d6 {[%clk 0:02:59]} 2. Nf3 {[%clk 0:02:59]}  g6 {[%clk 0:02:59]} 3. c4 {[%clk 0:02:58]}  Bg7 {[%clk 0:03:00]} 4. Nc3 {[%clk 0:02:57]}  Nf6 {[%clk 0:03:01]} 5. e4 {[%clk 0:02:56]}  O-O {[%clk 0:03:01]} 6. Be2 {[%clk 0:02:57]}  Nc6 {[%clk 0:03:01]} 7. O-O {[%clk 0:02:57]}  e5 {[%clk 0:03:02]} 8. d5 {[%clk 0:02:58]}  Ne7 {[%clk 0:03:02]} 9. b4 {[%clk 0:02:58]}  h6 {[%clk 0:03:02]} 10. c5 {[%clk 0:02:57]}  Ne8 {[%clk 0:03:03]} 11. Nd2 {[%clk 0:02:55]}  f5 {[%clk 0:03:03]} 12. Nc4 {[%clk 0:02:55]}  h5 {[%clk 0:03:02]} 13. a4 {[%clk 0:02:54]}  Rf7 {[%clk 0:03:02]} 14. a5 {[%clk 0:02:53]}  f4 {[%clk 0:03:01]} 15. Ba3 {[%clk 0:02:53]}  Bf8 {[%clk 0:02:54]} 16. b5 {[%clk 0:02:51]}  Kh7 {[%clk 0:02:49]} 17. b6 {[%clk 0:02:47]}  axb6 {[%clk 0:02:48]} 18. axb6 {[%clk 0:02:46]}  Ng8 {[%clk 0:02:31]} 19. bxc7 {[%clk 0:02:41]}  Rxc7 {[%clk 0:02:12]} 20. Nb5 {[%clk 0:02:39]}  Rxa3 {[%clk 0:02:11]} 21. Rxa3 {[%clk 0:02:34]}  Rxc5 {[%clk 0:02:12]} 22. Nd2 {[%clk 0:02:12]}  Bd7 {[%clk 0:02:09]} 23. Qb1 {[%clk 0:02:05]}  Ngf6 {[%clk 0:02:07]} 24. Nc3 {[%clk 0:01:57]}  b6 {[%clk 0:01:58]} 25. Rc1 {[%clk 0:01:55]}  Bh6 {[%clk 0:01:50]} 26. f3 {[%clk 0:01:51]}  g5 {[%clk 0:01:50]} 27. Nb3 {[%clk 0:01:45]}  Rc8 {[%clk 0:01:39]} 28. Nb5 {[%clk 0:01:40]}  g4 {[%clk 0:01:39]} 29. Na7 {[%clk 0:01:35]}  Rxc1+ {[%clk 0:01:31]} 30. Qxc1 {[%clk 0:01:36]}  gxf3 {[%clk 0:01:32]} 31. Bxf3 {[%clk 0:01:26]}  Ng4 {[%clk 0:01:31]} 32. h3 {[%clk 0:01:17]}  Qh4 {[%clk 0:01:29]} 33. hxg4 {[%clk 0:00:51]}  hxg4 {[%clk 0:01:28]} 34. Nd2 {[%clk 0:00:51]}  g3 {[%clk 0:01:10]} 35. Qd1 {[%clk 0:00:37]}  Qh2+ {[%clk 0:01:05]} 36. Kf1 {[%clk 0:00:37]}  Bh3 {[%clk 0:01:05]} 37. Nc6 {[%clk 0:00:27]}  Nf6 {[%clk 0:00:58]} 38. Ra7+ {[%clk 0:00:26]}  Kg6 {[%clk 0:00:59]} 39. Ne7+ {[%clk 0:00:26]}  Kg5 {[%clk 0:00:59]} 40. Ke2 {[%clk 0:00:20]}  Bxg2 {[%clk 0:00:58]} 41. Kd3 {[%clk 0:00:20]}  Bh3 {[%clk 0:00:55]} 42. Be2 {[%clk 0:00:19]}  g2 {[%clk 0:00:53]} 43. Nf3+ {[%clk 0:00:19]}  Kg4 {[%clk 0:00:47]} 44. Nxh2+ {[%clk 0:00:18]}  Kg3 {[%clk 0:00:48]} 45. Qg1 {[%clk 0:00:15]} 1-0


[Site "https://www.chess.com"]

[Event "Titled Tuesday Blitz March 07 Late 2023"]
[White "Awoki, Daniel Teidi"]
[Black "Kochetov, Andrey"]
[WhiteFideId "2100827"]
[BlackFideId "24130532"]
[WhiteElo "2087"]
[BlackElo "2515"]
[Result "0-1"]
[Round "03"]
[TimeControl "180+2"]
[Date "2023.03.07"]
[WhiteClock "0:00:03"]
[BlackClock "0:00:25"]

1. e4 {[%clk 0:03:00]}  e5 {[%clk 0:02:56]} 2. Nf3 {[%clk 0:02:56]}  Nf6 {[%clk 0:02:56]} 3. Nc3 {[%clk 0:02:55]}  Nc6 {[%clk 0:02:56]} 4. Bb5 {[%clk 0:02:53]}  Bb4 {[%clk 0:02:56]} 5. O-O {[%clk 0:02:53]}  d6 {[%clk 0:02:54]} 6. d3 {[%clk 0:02:53]}  O-O {[%clk 0:02:49]} 7. Bg5 {[%clk 0:02:51]}  Bg4 {[%clk 0:02:48]} 8. Nd5 {[%clk 0:02:50]}  Bc5 {[%clk 0:02:44]} 9. Nxf6+ {[%clk 0:02:48]}  gxf6 {[%clk 0:02:44]} 10. Bh6 {[%clk 0:02:49]}  Re8 {[%clk 0:02:45]} 11. c3 {[%clk 0:02:39]}  Qd7 {[%clk 0:02:41]} 12. Kh1 {[%clk 0:02:34]}  a6 {[%clk 0:02:41]} 13. Ba4 {[%clk 0:02:33]}  b5 {[%clk 0:02:41]} 14. Bc2 {[%clk 0:02:32]}  Ne7 {[%clk 0:02:42]} 15. Qd2 {[%clk 0:02:17]}  Bxf3 {[%clk 0:02:25]} 16. gxf3 {[%clk 0:02:16]}  Qh3 {[%clk 0:02:25]} 17. Rg1+ {[%clk 0:02:16]}  Ng6 {[%clk 0:02:26]} 18. Rg3 {[%clk 0:02:14]}  Qh5 {[%clk 0:02:24]} 19. Rag1 {[%clk 0:02:02]}  Bxf2 {[%clk 0:02:19]} 20. Qxf2 {[%clk 0:01:57]}  Qxh6 {[%clk 0:02:18]} 21. f4 {[%clk 0:01:52]}  Qxf4 {[%clk 0:02:15]} 22. Qxf4 {[%clk 0:01:51]}  exf4 {[%clk 0:02:15]} 23. Rf3 {[%clk 0:01:52]}  Kh8 {[%clk 0:02:10]} 24. Bb3 {[%clk 0:01:42]}  Re7 {[%clk 0:02:02]} 25. d4 {[%clk 0:01:32]}  Rxe4 {[%clk 0:02:00]} 26. Bd5 {[%clk 0:01:32]}  Rae8 {[%clk 0:01:59]} 27. Bxe4 {[%clk 0:01:32]}  Rxe4 {[%clk 0:02:00]} 28. Rf2 {[%clk 0:01:27]}  f5 {[%clk 0:01:55]} 29. Rgf1 {[%clk 0:01:27]}  Kg7 {[%clk 0:01:55]} 30. Kg2 {[%clk 0:01:25]}  Kf6 {[%clk 0:01:55]} 31. Rd1 {[%clk 0:01:15]}  Re3 {[%clk 0:01:49]} 32. a4 {[%clk 0:01:13]}  Ke6 {[%clk 0:01:42]} 33. axb5 {[%clk 0:01:11]}  axb5 {[%clk 0:01:43]} 34. Kf1 {[%clk 0:01:10]}  Kd5 {[%clk 0:01:37]} 35. Re1 {[%clk 0:01:05]}  Ke4 {[%clk 0:01:37]} 36. Ra1 {[%clk 0:01:00]}  Kd3 {[%clk 0:01:35]} 37. Ra7 {[%clk 0:00:57]}  Re7 {[%clk 0:01:34]} 38. Rb7 {[%clk 0:00:57]}  Kc4 {[%clk 0:01:33]} 39. Re2 {[%clk 0:00:52]}  Rd7 {[%clk 0:01:28]} 40. Re8 {[%clk 0:00:50]}  Ne7 {[%clk 0:01:23]} 41. Reb8 {[%clk 0:00:47]}  Kd3 {[%clk 0:01:11]} 42. Rxb5 {[%clk 0:00:44]}  Ke3 {[%clk 0:01:07]} 43. Ra5 {[%clk 0:00:39]}  f3 {[%clk 0:01:00]} 44. Raa8 {[%clk 0:00:37]}  c5 {[%clk 0:00:56]} 45. Rd8 {[%clk 0:00:34]}  Rb7 {[%clk 0:00:55]} 46. Rdb8 {[%clk 0:00:32]}  Rd7 {[%clk 0:00:47]} 47. b4 {[%clk 0:00:21]}  cxd4 {[%clk 0:00:45]} 48. cxd4 {[%clk 0:00:22]}  Rc7 {[%clk 0:00:45]} 49. Ra3+ {[%clk 0:00:18]}  Kf4 {[%clk 0:00:41]} 50. b5 {[%clk 0:00:16]}  Nd5 {[%clk 0:00:35]} 51. Ra1 {[%clk 0:00:11]}  Rc2 {[%clk 0:00:31]} 52. Re8 {[%clk 0:00:08]}  Rxh2 {[%clk 0:00:28]} 53. Kg1 {[%clk 0:00:07]}  Rb2 {[%clk 0:00:28]} 54. Rb8 {[%clk 0:00:03]}  f2+ {[%clk 0:00:27]} 55. Kg2 {[%clk 0:00:03]}  Ne3+ {[%clk 0:00:27]} 56. Kh3 {[%clk 0:00:03]}  f1=Q+ {[%clk 0:00:26]} 57. Rxf1+ {[%clk 0:00:04]}  Nxf1 {[%clk 0:00:27]} 58. b6 {[%clk 0:00:03]}  Rh2# {[%clk 0:00:25]} 0-1


[Site "https://www.chess.com"]

[Event "Titled Tuesday Blitz March 07 Late 2023"]
[White "Rose, Felix"]
[Black "Sokac, Marko"]
[WhiteFideId "5105722"]
[BlackFideId "14531356"]
[WhiteElo "2039"]
[BlackElo "2355"]
[Result "0-1"]
[Round "03"]
[TimeControl "180+2"]
[Date "2023.03.07"]
[WhiteClock "0:00:18"]
[BlackClock "0:01:07"]

1. e4 {[%clk 0:03:00]}  d6 {[%clk 0:03:00]} 2. d4 {[%clk 0:03:00]}  Nf6 {[%clk 0:03:00]} 3. Nc3 {[%clk 0:03:01]}  c6 {[%clk 0:03:01]} 4. f4 {[%clk 0:02:59]}  Qa5 {[%clk 0:03:01]} 5. Bd3 {[%clk 0:02:54]}  e5 {[%clk 0:03:01]} 6. Nf3 {[%clk 0:02:54]}  exd4 {[%clk 0:03:01]} 7. Nxd4 {[%clk 0:02:54]}  Qb6 {[%clk 0:03:02]} 8. Nb3 {[%clk 0:02:31]}  a5 {[%clk 0:03:00]} 9. Qe2 {[%clk 0:02:28]}  a4 {[%clk 0:02:59]} 10. Be3 {[%clk 0:02:20]}  Qb4 {[%clk 0:02:59]} 11. a3 {[%clk 0:01:56]}  axb3 {[%clk 0:02:58]} 12. axb4 {[%clk 0:01:56]}  Rxa1+ {[%clk 0:02:59]} 13. Kd2 {[%clk 0:01:35]}  Rxh1 {[%clk 0:02:58]} 14. e5 {[%clk 0:01:34]}  dxe5 {[%clk 0:02:53]} 15. Bb6 {[%clk 0:01:18]}  Be7 {[%clk 0:01:57]} 16. Qxe5 {[%clk 0:01:15]}  Nbd7 {[%clk 0:01:53]} 17. Qc7 {[%clk 0:00:44]}  Nxb6 {[%clk 0:01:48]} 18. Qxb6 {[%clk 0:00:44]}  O-O {[%clk 0:01:47]} 19. cxb3 {[%clk 0:00:41]}  Rd8 {[%clk 0:01:40]} 20. Kc2 {[%clk 0:00:39]}  Rxh2 {[%clk 0:01:22]} 21. Bf1 {[%clk 0:00:24]}  Rh1 {[%clk 0:01:12]} 22. Bd3 {[%clk 0:00:18]}  Rh2 {[%clk 0:01:09]} 23. Qf2 {[%clk 0:00:18]}  Ng4 {[%clk 0:01:06]} 24. Qg3 {[%clk 0:00:18]}  Rxg2+ {[%clk 0:01:06]} 25. Qxg2 {[%clk 0:00:18]}  Ne3+ {[%clk 0:01:07]} 0-1


[Site "https://www.chess.com"]

[Event "Titled Tuesday Blitz March 07 Late 2023"]
[White "Roberson, Peter T"]
[Black "Hartikainen, Jarmo"]
[WhiteFideId "412384"]
[BlackFideId "503134"]
[WhiteElo "2346"]
[BlackElo "2206"]
[Result "1-0"]
[Round "03"]
[TimeControl "180+2"]
[Date "2023.03.07"]
[WhiteClock "0:01:37"]
[BlackClock "0:00:02"]

1. d4 {[%clk 0:03:00]}  Nf6 {[%clk 0:02:58]} 2. Bg5 {[%clk 0:03:00]}  g6 {[%clk 0:02:55]} 3. Bxf6 {[%clk 0:03:00]}  exf6 {[%clk 0:02:55]} 4. Nf3 {[%clk 0:02:57]}  f5 {[%clk 0:02:54]} 5. g3 {[%clk 0:02:58]}  Bg7 {[%clk 0:02:54]} 6. Bg2 {[%clk 0:02:58]}  O-O {[%clk 0:02:54]} 7. O-O {[%clk 0:02:59]}  d6 {[%clk 0:02:55]} 8. c3 {[%clk 0:03:00]}  Nd7 {[%clk 0:02:55]} 9. Nbd2 {[%clk 0:03:01]}  Nf6 {[%clk 0:02:55]} 10. Qc2 {[%clk 0:03:01]}  Re8 {[%clk 0:02:54]} 11. Rfe1 {[%clk 0:03:01]}  c6 {[%clk 0:02:44]} 12. a4 {[%clk 0:02:55]}  a5 {[%clk 0:02:40]} 13. Nc4 {[%clk 0:02:54]}  Ne4 {[%clk 0:02:27]} 14. Nfd2 {[%clk 0:02:53]}  Nxd2 {[%clk 0:02:25]} 15. Qxd2 {[%clk 0:02:53]}  d5 {[%clk 0:02:19]} 16. Ne5 {[%clk 0:02:49]}  Bxe5 {[%clk 0:02:18]} 17. dxe5 {[%clk 0:02:47]}  Rxe5 {[%clk 0:02:18]} 18. h4 {[%clk 0:02:44]}  Bd7 {[%clk 0:01:53]} 19. h5 {[%clk 0:02:39]}  Qf6 {[%clk 0:01:44]} 20. Qd4 {[%clk 0:02:35]}  Rae8 {[%clk 0:01:32]} 21. e3 {[%clk 0:02:32]}  Qg5 {[%clk 0:01:23]} 22. hxg6 {[%clk 0:02:32]}  hxg6 {[%clk 0:01:17]} 23. f4 {[%clk 0:02:24]}  Qxg3 {[%clk 0:00:50]} 24. fxe5 {[%clk 0:02:16]}  g5 {[%clk 0:00:27]} 25. Rf1 {[%clk 0:02:04]}  g4 {[%clk 0:00:12]} 26. Rf4 {[%clk 0:01:47]}  Qh4 {[%clk 0:00:07]} 27. Raf1 {[%clk 0:01:43]}  Be6 {[%clk 0:00:02]} 28. Rxf5 {[%clk 0:01:37]}  Bxf5 {[%clk 0:00:02]} 29. Rxf5 {[%clk 0:01:38]}  g3 {[%clk 0:00:02]} 30. Qxh4 {[%clk 0:01:37]} 1-0


[Site "https://www.chess.com"]

[Event "Titled Tuesday Blitz March 07 Late 2023"]
[White "Battlecruiser_Operational"]
[Black "Kalajzic, Ivan"]
[BlackFideId "14506378"]
[WhiteElo "2251"]
[BlackElo "2203"]
[Result "0-1"]
[Round "03"]
[TimeControl "180+2"]
[Date "2023.03.07"]
[WhiteClock "0:02:10"]
[BlackClock "0:02:28"]

1. Nf3 {[%clk 0:02:59]}  Nc6 {[%clk 0:02:59]} 2. c4 {[%clk 0:02:59]}  e5 {[%clk 0:02:59]} 3. Nc3 {[%clk 0:02:59]}  Bc5 {[%clk 0:02:59]} 4. g3 {[%clk 0:02:58]}  d6 {[%clk 0:02:59]} 5. Bg2 {[%clk 0:02:58]}  Bg4 {[%clk 0:02:59]} 6. O-O {[%clk 0:02:57]}  Qd7 {[%clk 0:03:00]} 7. a3 {[%clk 0:02:55]}  a5 {[%clk 0:02:59]} 8. Re1 {[%clk 0:02:45]}  Bh3 {[%clk 0:02:59]} 9. Bh1 {[%clk 0:02:45]}  h5 {[%clk 0:02:59]} 10. e3 {[%clk 0:02:42]}  Bg4 {[%clk 0:02:42]} 11. d4 {[%clk 0:02:21]}  Ba7 {[%clk 0:02:38]} 12. Nb5 {[%clk 0:02:12]}  e4 {[%clk 0:02:28]} 13. h3 {[%clk 0:02:10]}  Bxf3 {[%clk 0:02:28]} 0-1


[Site "https://www.chess.com"]

[Event "Titled Tuesday Blitz March 07 Late 2023"]
[White "Karas, Marek"]
[Black "mohsengabr2002"]
[WhiteFideId "14928558"]
[WhiteElo "2233"]
[BlackElo "2306"]
[Result "1-0"]
[Round "03"]
[TimeControl "180+2"]
[Date "2023.03.07"]
[WhiteClock "0:00:16"]
[BlackClock "0:00:40"]

1. c3 {[%clk 0:02:59]}  g6 {[%clk 0:02:57]} 2. d4 {[%clk 0:03:00]}  Bg7 {[%clk 0:02:58]} 3. Nf3 {[%clk 0:03:00]}  d6 {[%clk 0:02:57]} 4. Bg5 {[%clk 0:03:00]}  b6 {[%clk 0:02:55]} 5. e4 {[%clk 0:03:00]}  Bb7 {[%clk 0:02:55]} 6. Bd3 {[%clk 0:03:00]}  Nd7 {[%clk 0:02:56]} 7. Nbd2 {[%clk 0:03:00]}  c5 {[%clk 0:02:54]} 8. O-O {[%clk 0:02:57]}  Qc7 {[%clk 0:02:54]} 9. Qe2 {[%clk 0:02:56]}  f6 {[%clk 0:02:52]} 10. Bh4 {[%clk 0:02:55]}  e5 {[%clk 0:02:51]} 11. a4 {[%clk 0:02:47]}  Nh6 {[%clk 0:02:50]} 12. Bg3 {[%clk 0:02:46]}  Nf7 {[%clk 0:02:48]} 13. a5 {[%clk 0:02:43]}  O-O-O {[%clk 0:02:37]} 14. axb6 {[%clk 0:02:42]}  axb6 {[%clk 0:02:36]} 15. Ba6 {[%clk 0:02:42]}  Nb8 {[%clk 0:02:33]} 16. Bxb7+ {[%clk 0:02:39]}  Qxb7 {[%clk 0:02:31]} 17. Ra2 {[%clk 0:02:38]}  Bh6 {[%clk 0:02:26]} 18. Rfa1 {[%clk 0:02:32]}  Bxd2 {[%clk 0:02:20]} 19. Nxd2 {[%clk 0:02:31]}  Rd7 {[%clk 0:02:19]} 20. Ra8 {[%clk 0:02:24]}  Kd8 {[%clk 0:02:15]} 21. Qb5 {[%clk 0:02:20]}  Ke7 {[%clk 0:02:13]} 22. Nc4 {[%clk 0:02:14]}  cxd4 {[%clk 0:01:50]} 23. cxd4 {[%clk 0:02:02]}  Qxe4 {[%clk 0:01:49]} 24. Nxb6 {[%clk 0:01:54]}  Qxd4 {[%clk 0:01:39]} 25. Rxb8 {[%clk 0:01:42]}  Rxb8 {[%clk 0:01:38]} 26. Qxd7+ {[%clk 0:01:42]}  Kf8 {[%clk 0:01:38]} 27. Na4 {[%clk 0:01:34]}  Rb4 {[%clk 0:01:33]} 28. h4 {[%clk 0:01:28]}  f5 {[%clk 0:01:25]} 29. Nc3 {[%clk 0:01:23]}  f4 {[%clk 0:01:24]} 30. Ra8+ {[%clk 0:01:18]}  Kg7 {[%clk 0:01:24]} 31. Ra7 {[%clk 0:01:18]}  Qc4 {[%clk 0:01:24]} 32. Rc7 {[%clk 0:01:07]}  Qb3 {[%clk 0:01:16]} 33. Bh2 {[%clk 0:00:59]}  Rd4 {[%clk 0:01:07]} 34. g4 {[%clk 0:00:50]}  Rd2 {[%clk 0:01:03]} 35. h5 {[%clk 0:00:27]}  f3 {[%clk 0:00:50]} 36. Bg3 {[%clk 0:00:22]}  gxh5 {[%clk 0:00:45]} 37. gxh5 {[%clk 0:00:20]}  h6 {[%clk 0:00:45]} 38. Qg4+ {[%clk 0:00:17]}  Kf8 {[%clk 0:00:43]} 39. Rc8+ {[%clk 0:00:17]}  Ke7 {[%clk 0:00:43]} 40. Bh4+ {[%clk 0:00:17]}  Ng5 {[%clk 0:00:41]} 41. Bxg5+ {[%clk 0:00:17]}  hxg5 {[%clk 0:00:41]} 42. Qxg5+ {[%clk 0:00:17]}  Ke6 {[%clk 0:00:42]} 43. Qg8+ {[%clk 0:00:17]}  Kf5 {[%clk 0:00:40]} 44. Qxb3 {[%clk 0:00:16]} 1-0


[Site "https://www.chess.com"]

[Event "Titled Tuesday Blitz March 07 Late 2023"]
[White "Chemin, Justo Reinaldo"]
[Black "Saya, Ethan"]
[WhiteFideId "2101580"]
[BlackFideId "26095181"]
[WhiteElo "1940"]
[BlackElo "2150"]
[Result "1/2-1/2"]
[Round "03"]
[TimeControl "180+2"]
[Date "2023.03.07"]
[WhiteClock "0:00:55"]
[BlackClock "0:01:57"]

1. e4 {[%clk 0:03:00]}  d5 {[%clk 0:02:57]} 2. exd5 {[%clk 0:02:59]}  Qxd5 {[%clk 0:02:58]} 3. Nc3 {[%clk 0:02:59]}  Qe5+ {[%clk 0:02:56]} 4. Qe2 {[%clk 0:02:56]}  Qxe2+ {[%clk 0:02:52]} 5. Bxe2 {[%clk 0:02:56]}  c6 {[%clk 0:02:51]} 6. Nf3 {[%clk 0:02:56]}  Bf5 {[%clk 0:02:48]} 7. Nd4 {[%clk 0:02:52]}  Bg6 {[%clk 0:02:48]} 8. d3 {[%clk 0:02:52]}  e5 {[%clk 0:02:45]} 9. Nb3 {[%clk 0:02:51]}  Nd7 {[%clk 0:02:41]} 10. O-O {[%clk 0:02:52]}  Ngf6 {[%clk 0:02:36]} 11. Re1 {[%clk 0:02:52]}  Bd6 {[%clk 0:02:35]} 12. a4 {[%clk 0:02:49]}  a5 {[%clk 0:02:34]} 13. Bf3 {[%clk 0:02:45]}  O-O {[%clk 0:02:33]} 14. Bg5 {[%clk 0:02:40]}  Rfe8 {[%clk 0:02:27]} 15. Bh4 {[%clk 0:02:35]}  Bf5 {[%clk 0:02:25]} 16. Bg3 {[%clk 0:02:34]}  Bg4 {[%clk 0:02:17]} 17. Bxg4 {[%clk 0:02:31]}  Nxg4 {[%clk 0:02:18]} 18. Ne4 {[%clk 0:02:30]}  Bc7 {[%clk 0:02:16]} 19. Nec5 {[%clk 0:02:27]}  Nxc5 {[%clk 0:02:16]} 20. Nxc5 {[%clk 0:02:27]}  b6 {[%clk 0:02:16]} 21. Nb3 {[%clk 0:02:22]}  f6 {[%clk 0:02:10]} 22. h3 {[%clk 0:02:20]}  Nh6 {[%clk 0:02:10]} 23. Re2 {[%clk 0:02:20]}  Nf5 {[%clk 0:02:10]} 24. Rae1 {[%clk 0:02:19]}  Nxg3 {[%clk 0:02:10]} 25. fxg3 {[%clk 0:02:19]}  Rad8 {[%clk 0:02:11]} 26. g4 {[%clk 0:02:15]}  b5 {[%clk 0:02:09]} 27. axb5 {[%clk 0:02:15]}  cxb5 {[%clk 0:02:10]} 28. Nd2 {[%clk 0:02:11]}  Bb6+ {[%clk 0:02:08]} 29. Kf1 {[%clk 0:02:10]}  a4 {[%clk 0:02:08]} 30. Ne4 {[%clk 0:02:09]}  Ra8 {[%clk 0:02:08]} 31. Nd6 {[%clk 0:02:06]}  Reb8 {[%clk 0:02:08]} 32. Nxb5 {[%clk 0:02:05]}  Ba5 {[%clk 0:02:05]} 33. c4 {[%clk 0:01:55]}  Bxe1 {[%clk 0:02:04]} 34. Rxe1 {[%clk 0:01:52]}  Ra5 {[%clk 0:02:02]} 35. Ra1 {[%clk 0:01:50]}  Rbxb5 {[%clk 0:02:02]} 36. cxb5 {[%clk 0:01:49]}  Rxb5 {[%clk 0:02:03]} 37. Rxa4 {[%clk 0:01:49]}  Rxb2 {[%clk 0:02:04]} 38. Ra7 {[%clk 0:01:47]}  h6 {[%clk 0:02:03]} 39. Rd7 {[%clk 0:01:46]}  Kh7 {[%clk 0:02:03]} 40. Kg1 {[%clk 0:01:40]}  Kg6 {[%clk 0:02:03]} 41. Kh2 {[%clk 0:01:41]}  Rd2 {[%clk 0:02:01]} 42. Rd5 {[%clk 0:01:38]}  Kg5 {[%clk 0:02:00]} 43. Kg3 {[%clk 0:01:36]}  Rd1 {[%clk 0:01:57]} 44. h4+ {[%clk 0:01:36]}  Kg6 {[%clk 0:01:57]} 45. Kf3 {[%clk 0:01:36]}  Rh1 {[%clk 0:01:54]} 46. g3 {[%clk 0:01:35]}  Rf1+ {[%clk 0:01:53]} 47. Ke2 {[%clk 0:01:35]}  Rg1 {[%clk 0:01:53]} 48. Kf2 {[%clk 0:01:34]}  Rd1 {[%clk 0:01:54]} 49. Ke2 {[%clk 0:01:34]}  Rg1 {[%clk 0:01:54]} 50. Kf2 {[%clk 0:01:34]}  Rc1 {[%clk 0:01:54]} 51. Kf3 {[%clk 0:01:27]}  Kf7 {[%clk 0:01:54]} 52. Rd7+ {[%clk 0:01:26]}  Kf8 {[%clk 0:01:54]} 53. Ke4 {[%clk 0:01:23]}  Rf1 {[%clk 0:01:50]} 54. d4 {[%clk 0:01:16]}  exd4 {[%clk 0:01:46]} 55. Rxd4 {[%clk 0:01:16]}  Ke7 {[%clk 0:01:45]} 56. Ra4 {[%clk 0:01:15]}  Ke6 {[%clk 0:01:42]} 57. Ra6+ {[%clk 0:01:15]}  Kf7 {[%clk 0:01:43]} 58. h5 {[%clk 0:01:12]}  Rf2 {[%clk 0:01:40]} 59. Ra7+ {[%clk 0:01:11]}  Kg8 {[%clk 0:01:38]} 60. Rb7 {[%clk 0:01:10]}  Re2+ {[%clk 0:01:38]} 61. Kf5 {[%clk 0:01:09]}  Re5+ {[%clk 0:01:39]} 62. Kf4 {[%clk 0:01:07]}  Kh7 {[%clk 0:01:38]} 63. Rc7 {[%clk 0:01:04]}  Rb5 {[%clk 0:01:38]} 64. Rd7 {[%clk 0:01:03]}  Rb4+ {[%clk 0:01:38]} 65. Kf3 {[%clk 0:01:00]}  Rb3+ {[%clk 0:01:39]} 66. Kg2 {[%clk 0:01:00]}  Rb2+ {[%clk 0:01:40]} 67. Kh3 {[%clk 0:01:00]}  Ra2 {[%clk 0:01:41]} 68. Re7 {[%clk 0:01:00]}  Rf2 {[%clk 0:01:40]} 69. Rd7 {[%clk 0:00:59]}  f5 {[%clk 0:01:41]} 70. gxf5 {[%clk 0:00:59]}  Rxf5 {[%clk 0:01:42]} 71. g4 {[%clk 0:00:59]}  Ra5 {[%clk 0:01:42]} 72. Rd6 {[%clk 0:00:56]}  Ra3+ {[%clk 0:01:42]} 73. Kh4 {[%clk 0:00:55]}  Kg8 {[%clk 0:01:43]} 74. Rd7 {[%clk 0:00:54]}  Ra2 {[%clk 0:01:43]} 75. Rc7 {[%clk 0:00:54]}  Kf8 {[%clk 0:01:43]} 76. Rc8+ {[%clk 0:00:54]}  Ke7 {[%clk 0:01:43]} 77. Rc7+ {[%clk 0:00:54]}  Kf6 {[%clk 0:01:44]} 78. Rc6+ {[%clk 0:00:54]}  Kf7 {[%clk 0:01:44]} 79. Rc7+ {[%clk 0:00:55]}  Kg8 {[%clk 0:01:45]} 80. Rd7 {[%clk 0:00:54]}  Re2 {[%clk 0:01:45]} 81. Rd8+ {[%clk 0:00:52]}  Kf7 {[%clk 0:01:44]} 82. Rd7+ {[%clk 0:00:52]}  Re7 {[%clk 0:01:45]} 83. Rxe7+ {[%clk 0:00:51]}  Kxe7 {[%clk 0:01:45]} 84. g5 {[%clk 0:00:52]}  Ke6 {[%clk 0:01:40]} 85. Kg4 {[%clk 0:00:50]}  Ke5 {[%clk 0:01:40]} 86. gxh6 {[%clk 0:00:47]}  gxh6 {[%clk 0:01:40]} 87. Kh4 {[%clk 0:00:48]}  Kf4 {[%clk 0:01:40]} 88. Kh3 {[%clk 0:00:48]}  Kg5 {[%clk 0:01:41]} 89. Kh2 {[%clk 0:00:49]}  Kxh5 {[%clk 0:01:42]} 90. Kg2 {[%clk 0:00:49]}  Kg6 {[%clk 0:01:43]} 91. Kh2 {[%clk 0:00:50]}  h5 {[%clk 0:01:44]} 92. Kh3 {[%clk 0:00:51]}  Kh6 {[%clk 0:01:45]} 93. Kh2 {[%clk 0:00:52]}  Kg5 {[%clk 0:01:46]} 94. Kh3 {[%clk 0:00:51]}  h4 {[%clk 0:01:47]} 95. Kh2 {[%clk 0:00:52]}  Kh5 {[%clk 0:01:48]} 96. Kh3 {[%clk 0:00:52]}  Kg5 {[%clk 0:01:48]} 97. Kh2 {[%clk 0:00:53]}  Kg4 {[%clk 0:01:49]} 98. Kg2 {[%clk 0:00:53]}  Kf4 {[%clk 0:01:50]} 99. Kh2 {[%clk 0:00:53]}  Kg4 {[%clk 0:01:50]} 100. Kg2 {[%clk 0:00:54]}  h3+ {[%clk 0:01:51]} 101. Kh2 {[%clk 0:00:54]}  Kh4 {[%clk 0:01:51]} 102. Kh1 {[%clk 0:00:54]}  Kg3 {[%clk 0:01:52]} 103. Kg1 {[%clk 0:00:54]}  Kf4 {[%clk 0:01:53]} 104. Kh2 {[%clk 0:00:54]}  Kg4 {[%clk 0:01:54]} 105. Kh1 {[%clk 0:00:55]}  Kg3 {[%clk 0:01:54]} 106. Kg1 {[%clk 0:00:55]}  Kf3 {[%clk 0:01:55]} 107. Kh2 {[%clk 0:00:55]}  Kg4 {[%clk 0:01:56]} 108. Kh1 {[%clk 0:00:55]}  Kg3 {[%clk 0:01:57]} 1/2-1/2


[Site "https://www.chess.com"]